Cogmind - Beta 15 @@@ ROGUE MODE // 2025.07.31 @ 10:51:43 Player: satan5 Result: Destroyed by OL-4Y8(R) with Subdweller Machine Gun Performance ------------- Evolutions (0) 0 Regions Visited (3) 600 Robots Destroyed (33) 165 Value Destroyed (589) 589 Prototype IDs (11) 220 Alien Tech Used (0) 0 Bonus (-18) -18 TOTAL SCORE: 1556 Bonus ------- Friendly Fire -18 Cogmind --------- Core Integrity 0/250 Matter 254/300 Energy 114/250 System Corruption 0% Temperature Cool (0) Movement Treading (250) Ox1 Location -10/Subcaves Parts ------- > --- POWER (1) -------- Ion Engine > --- PROPULSION (2) --- Light Treads Spiked Treads > --- UTILITY (2) ------ Improved Heat Sink High-capacity Storage Unit > --- WEAPON (2) ------- Subdweller Machine Gun Subdweller Machine Gun > --- INVENTORY (20) --- Light Ion Engine Light Ion Engine Subdweller Power Source Light Treads Rainbow Chip EM Pulse Gun Particle Gun Subdweller Laser Assault Rifle Assault Rifle Assault Rifle Light Assault Rifle Light Assault Rifle Heavy Battle Rifle Subdweller Shrapnel Launcher Subdweller Shrapnel Launcher Hammer Makeshift Sword Peak State ------------ > --- POWER ------------ Ion Engine > --- PROPULSION ------- Light Treads Spiked Treads > --- UTILITY ---------- Improved Heat Sink High-capacity Storage Unit > --- WEAPON ----------- Subdweller Machine Gun Subdweller Machine Gun > --- INVENTORY -------- Light Ion Engine Light Ion Engine Subdweller Power Source Light Treads Rainbow Chip EM Pulse Gun Particle Gun Subdweller Laser Assault Rifle Assault Rifle Assault Rifle Light Assault Rifle Light Assault Rifle Heavy Battle Rifle Subdweller Shrapnel Launcher Subdweller Shrapnel Launcher Hammer Makeshift Sword [Rating: 16] Favorites ----------- Power Ion Engine Engine Ion Engine Propulsion Light Treads Treads Light Treads Utility High-capacity Storage Unit Device Improved Heat Sink Storage High-capacity Storage Unit Weapon Assault Rifle Energy Gun Small Laser Ballistic Gun Assault Rifle Impact Weapon Hammer Build | -11 -10 -10 -10 ------- Run | Yrd Mat Min Sub Slots Evolved . | . . . . Power . | . . . . Propulsion . | . . . . Utility . | . . . . Weapon . | . . . . Parts Attached 19 | 6 1 4 8 Power 3 | 1 . . 2 Engine 3 | 1 . . 2 Core . | . . . . Reactor . | . . . . Propulsion 5 | 2 . 1 2 Treads 5 | 2 . 1 2 Leg . | . . . . Wheel . | . . . . Hover . | . . . . Flight . | . . . . Utility 3 | 1 1 1 . Device 1 | . . 1 . Storage 2 | 1 1 . . Processor . | . . . . Hackware . | . . . . Protection . | . . . . Artifact . | . . . . Weapon 8 | 2 . 2 4 Energy Gun 1 | 1 . . . Energy Cannon . | . . . . Ballistic Gun 6 | 1 . 2 3 Ballistic Cannon . | . . . . Launcher . | . . . . Special Weapon . | . . . . Impact Weapon 1 | . . . 1 Slashing Weapon . | . . . . Piercing Weapon . | . . . . Special Melee Weapon . | . . . . Unidentified Prototypes . | . . . . Parts Lost 6 | . . 2 4 Power 2 | . . . 2 Propulsion 3 | . . 1 2 Utility . | . . . . Weapon 1 | . . 1 . Highest Loss Streak 2 | . . 1 2 To Critical Strikes . | . . . . Average Backups 12 | 1 7 11 15 Power 3 | . 2 3 4 Propulsion 2 | . 2 2 1 Utility . | . . . . Weapon 6 | . 2 5 8 Tool/Special . | . . . . Unused Backups 13 | . . . 13 Power 3 | . . . 3 Propulsion 1 | . . . 1 Utility 1 | . . . 1 Weapon 8 | . . . 8 Tool/Special . | . . . . Average Slot Usage (%) 92 | . 85 87 99 Engine 13 | . 14 14 13 Treads 28 | . 28 28 28 Device 7 | . . 2 14 Storage 14 | . 14 14 14 Energy Gun 3 | . 14 . . Ballistic Gun 24 | . 14 27 27 Peak Build Rating 16 | 6 7 10 16 Average Rating 9 | 4 6 7 12 On Entrance 5 | . 6 7 10 Naked Turns . | . . . . Heaviest Build 54 | 12 47 50 54 Greatest Support 40 | 40 40 40 40 Greatest Overweight (x) 2 | 1 1 2 1 Average Overweight (x) . | . . 1 1 Largest Inventory Capacity 20 | 8 20 20 20 Average Capacity 19 | 7 17 20 20 Most Carried 20 | 3 11 14 20 Average Carried 12 | 1 7 11 15 Final Capacity 20 | 8 20 20 20 Final Carried 18 | 2 11 12 18 Class Distribution -------------------- 66% | Mutant 33% | Scavenger-Mutant Dominant Class ---------------- Mutant | -10/Materials Mutant | -10/Mines Scavenger-Mutant | -10/Subcaves Resources | -11 -10 -10 -10 ----------- Run | Yrd Mat Min Sub Matter Collected 665 | 262 57 131 215 Remotely . | . . . . Salvage Created 895 | 107 316 248 224 Parts 76 | 12 29 20 15 Haulers Intercepted 2 | . 2 . . Recyclers Shooed . | . . . . Parts Field Recycled . | . . . . Retrieved Matter . | . . . . Parts Self-Destructed 9 | . . . 9 Prevented . | . . . . Kills | -11 -10 -10 -10 ------- Run | Yrd Mat Min Sub Combat Hostiles Destroyed 24 | . 8 7 9 Guns 24 | . 8 7 9 Classes Destroyed 8 | 2 5 . 1 Builder 1 | . 1 . . Tunneler 4 | 3 . 1 . Hauler 2 | . 2 . . Recycler 1 | 1 . . . Watcher 1 | . 1 . . Swarmer 14 | . 6 3 5 Grunt 6 | . 2 4 . Subdweller 4 | . . . 4 Best Kill Streak 5 | 3 5 2 4 Combat Bots Only 4 | . 4 2 4 Max Kills in Single Turn 1 | 1 1 1 1 Gunslinging . | . . . . Exploded . | . . . . Melee . | . . . . Uniques/NPCs Destroyed . | . . . . Combat | -11 -10 -10 -10 -------- Run | Yrd Mat Min Sub Hostile Shots Fired 117 | . 34 30 53 Missed 21 | . 6 6 9 Hits 96 | . 28 24 44 Projectile 96 | . 28 24 44 Critical Strikes 2 | . . . 2 Damage Taken 1140 | . 268 292 580 Core 265 | . 52 53 160 Absorbed by Shields . | . . . . Core Remaining (%) 100 | 100 . . . Volleys Fired 131 | 11 45 19 56 Largest 2 | 2 2 2 2 Hottest 60 | 60 60 60 60 Shots Fired 223 | 22 86 38 77 Gun 223 | 22 86 38 77 Cannon . | . . . . Launcher . | . . . . Special . | . . . . Kinetic 168 | 11 45 35 77 Thermal 55 | 11 41 3 . Explosive . | . . . . Electromagnetic . | . . . . Robot Hit Streak 26 | 5 9 10 26 Robot Miss Streak 4 | 1 4 2 2 Penetration Max . | . . . . Secondary Targets 6 | . 2 2 2 Max Gunslinging Chain 1 | . 1 1 1 Shots Hit Robots 127 | 15 48 29 35 Core Hits 53 | 5 19 15 14 Critical Kills 1 | . . . 1 Critical Parts Destroyed . | . . . . Critical Strikes 2 | . . . 2 Destroy 2 | . . . 2 Melee Attacks 1 | . . . 1 Impact 1 | . . . 1 Slashing . | . . . . Piercing . | . . . . Sneak Attacks . | . . . . Combat Hostiles . | . . . . Follow-up Attacks . | . . . . Damage Inflicted 1586 | 160 483 360 583 Guns 1586 | 160 483 360 583 Cannons . | . . . . Explosions . | . . . . Melee . | . . . . Ramming . | . . . . Kinetic 1194 | 70 213 328 583 Thermal 392 | 90 270 32 . Explosive . | . . . . Electromagnetic . | . . . . Impact . | . . . . Slashing . | . . . . Piercing . | . . . . Highest Corruption . | . . . . Average Corruption . | . . . . Corruption Purged . | . . . . Corruption Blocked . | . . . . Overload Shots . | . . . . Overflow Damage . | . . . . Projectiles . | . . . . Explosions . | . . . . Melee . | . . . . Knockbacks . | . . . . Impact . | . . . . Kinetic . | . . . . Secondary . | . . . . Self-Inflicted Damage . | . . . . Shots . | . . . . Rammed . | . . . . Targets Rammed . | . . . . Kicked . | . . . . Crushed . | . . . . Highest Temperature 154 | 40 154 62 . Average Temperature 51 | 21 61 35 . Received Heat Transfer 285 | . 96 135 54 Siege Activations . | . . . . Martial Activations . | . . . . Shielding Activations . | . . . . Robots Disrupted . | . . . . Combat Hostiles . | . . . . Robots Corrupted . | . . . . Combat Hostiles . | . . . . Parts Fried . | . . . . Impact Corruptions . | . . . . Robots Melted . | . . . . Combat Hostiles . | . . . . Parts Melted 1 | . 1 . . Heat Transferred 875 | 200 600 75 . Parts Sabotaged . | . . . . Parts Stolen . | . . . . Parts Stripped . | . . . . Power Chain Reactions . | . . . . Alert | -11 -10 -10 -10 ------- Run | Yrd Mat Min Sub Maximum Alert Level . | . . . . Low Security (%) 100 | 100 100 100 . Level 1 . | . . . . Level 2 . | . . . . Level 3 . | . . . . Level 4 . | . . . . Level 5 . | . . . . High Security . | . . . . Max Security . | . . . . Peak Influence 87 | 10 87 65 . Initial 4 | . 3 4 . Average 17 | 1 29 10 . Influence Increases 585 | 20 235 190 140 Destroy 0b10 Robot/C 400 | . 160 140 100 Destroy 0b10 Robot/NC 45 | 20 20 5 . Destroy Leader 66 | . 26 30 10 Successful Hack 29 | . 29 . . Lose Combat Pursuer 45 | . . 15 30 Influence Decreases 555 | 15 229 201 110 Entered New Map 9 | . 2 7 . Time Decay 532 | 15 227 180 110 Lost Part 14 | . . 14 . Squads Dispatched . | . . . . Investigation . | . . . . Extermination . | . . . . Reinforcement . | . . . . Assault . | . . . . Garrison . | . . . . Intercept . | . . . . Searches Triggered . | . . . . Construction Impeded . | . . . . Haulers Reinforced . | . . . . Active Scanning Responses . | . . . . Cargo Convoy Interrupts . | . . . . Stealth | -11 -10 -10 -10 --------- Run | Yrd Mat Min Sub Distress Signals 1 | . 1 . . Communications Jammed . | . . . . Distress Signals . | . . . . Times Spotted 31 | . 10 8 13 Peak Tracking Total 6 | . 4 2 6 Tactical Retreats 2 | . . 1 1 Traps | -11 -10 -10 -10 ------- Run | Yrd Mat Min Sub Traps Triggered . | . . . . Indirectly . | . . . . Trap Hack Attempts . | . . . . Triggered . | . . . . Disarmed . | . . . . Reprogrammed . | . . . . Reused . | . . . . Traps Extracted . | . . . . Installed . | . . . . Triggered . | . . . . Machines | -11 -10 -10 -10 ---------- Run | Yrd Mat Min Sub Machines Disabled 1 | . . . 1 Max in Single Turn 1 | . . . 1 Machines Repaired . | . . . . Machines Dismantled . | . . . . Machines Sabotaged . | . . . . Overloaded Fab Kills . | . . . . Hacking | -11 -10 -10 -10 --------- Run | Yrd Mat Min Sub Machines Accessed 4 | . 3 . 1 Terminals 2 | . 2 . . Fabricators . | . . . . Repair Stations . | . . . . Recycling Units 1 | . 1 . . Scanalyzers . | . . . . Garrison Access . | . . . . Total Hacks 25 | . 16 . 9 Successful 15 | . 6 . 9 Failed 9 | . 9 . . Catastrophic 1 | . 1 . . Database Lockouts 1 | . 1 . . Manual 12 | . 12 . . Terminals 11 | . 11 . . Fabricators . | . . . . Repair Stations . | . . . . Recycling Units 5 | . 5 . . Scanalyzers . | . . . . Garrison Access . | . . . . Terminal Hacks 11 | . 2 . 9 Record 8 | . . . 8 Robot Analysis 2 | . 2 . . Proto ID Catalog 1 | . . . 1 Fabricator Hacks . | . . . . Repair Station Hacks . | . . . . Recycling Unit Hacks 1 | . 1 . . Retrieve Components 1 | . 1 . . Scanalyzer . | . . . . Garrison Access Hacks . | . . . . Unauthorized Hacks 3 | . 3 . . Terminals 2 | . 2 . . Botnet 1 | . 1 . . Operators 1 | . 1 . . Fabricators . | . . . . Repair Stations . | . . . . Recycling Units 1 | . 1 . . Mask 1 | . 1 . . Scanalyzers . | . . . . Garrison Access . | . . . . Data Cores Recovered . | . . . . Used . | . . . . Hacking Detections 3 | . 3 . . Full Trace Events . | . . . . Feedback Events . | . . . . Feedback Blocked . | . . . . Robot Schematics Acquired . | . . . . Robots Built . | . . . . Authchips . | . . . . Time . | . . . . Total Robot Build Rating . | . . . . Part Schematics Acquired . | . . . . Parts Built . | . . . . Authchips . | . . . . Time . | . . . . Total Part Build Rating . | . . . . Parts Repaired . | . . . . Time . | . . . . Parts Recycled . | . . . . Recycled Matter . | . . . . Retrieved Matter . | . . . . Retrieved Components 1 | . 1 . . Parts Scanalyzed . | . . . . Part Schematics Acquired . | . . . . Parts Damaged . | . . . . Bothacking | -11 -10 -10 -10 ------------ Run | Yrd Mat Min Sub Used RIF Installer . | . . . . Robots Hacked . | . . . . Non-combat . | . . . . Combat . | . . . . Robot Hacks Applied . | . . . . Relay Couplers Released . | . . . . Fabnet Peak Effective % . | . . . . Robots Rewired . | . . . . Allies Hacked . | . . . . Hacks Repelled . | . . . . Allies | -11 -10 -10 -10 -------- Run | Yrd Mat Min Sub Total Allies . | . . . . Largest Group . | . . . . Highest-Rated Group . | . . . . Highest-Rated Ally . | . . . . Total Orders . | . . . . Ally Attacks . | . . . . Total Damage . | . . . . Kills . | . . . . Allies Corrupted . | . . . . Allies Melted . | . . . . Intel | -11 -10 -10 -10 ------- Run | Yrd Mat Min Sub Active Infowar (turns) . | . . . . Robot Analysis Total 2 | . 2 . . Derelict Logs Recovered 2 | . . 1 1 Drone Launches . | . . . . Drone Recoveries . | . . . . Exploration | -11 -10 -10 -10 ------------- Run | Yrd Mat Min Sub Turns Passed 3535 | 90 758 1149 1538 Spaces Moved 1216 | 33 274 339 570 Core 4 | 4 . . . Treads 1212 | 29 274 339 570 Legs . | . . . . Wheels . | . . . . Hover . | . . . . Flight . | . . . . Fastest Speed 50 | 50 160 240 240 Average Speed 234 | 148 227 240 240 Slowest Speed 320 | 160 240 320 240 Overloaded Moves . | . . . . Propulsion Burnouts . | . . . . Robots Hopped . | . . . . Potential Cave-ins . | . . . . Cave-ins Triggered . | . . . . Exploration Rate (%) 39 | 5 55 56 41 Regions Visited 3 Branch Regions 2 Pre-discovered Areas . | . . . . Known Exits Taken . | . . . . Unknown Exits Taken 3 | 1 1 1 . Scrap Searched 9 | . . 1 8 Spaces Dug . | . . . . Terrain Destroyed . | . . . . Melee . | . . . . Projectile . | . . . . AOE . | . . . . Terrain Rammed . | . . . . Walls Destroyed . | . . . . Machines Disabled . | . . . . Actions | -11 -10 -10 -10 --------- Run | Yrd Mat Min Sub Total 1680 | 52 332 637 659 Wait 287 | . 3 272 12 Move 1213 | 32 273 338 570 Hop . | . . . . Pick Up 26 | 3 9 4 10 Fast Attach 6 | 5 1 . . Attach 8 | 1 . 3 4 Detach . | . . . . Swap 7 | . . 1 6 Drop 1 | . 1 . . Fire 131 | 11 45 19 56 Melee 1 | . . . 1 Ram . | . . . . Kick . | . . . . Crush . | . . . . Escape Stasis . | . . . . Rewire . | . . . . Trap . | . . . . Miscellaneous . | . . . . Route ------- -11/Scrapyard -10/Materials (discovered 2 exits: [*Mat] / [*Min]) -10/Mines (discovered 3 exits: [*Mat x2] / *Sub) -10/Subcaves (discovered 1 exit: [*Mat]) History --------- Turn | Location | Event 24 | -11/Scrapyard | Discovered new exit (range 15) 91 | -11/Scrapyard | Entered Materials 302 | -10/Materials | Build established: Mutant 591 | -10/Materials | Discovered new exit (range 15) 738 | -10/Materials | Central database locked down 769 | -10/Materials | Discovered new exit (range 7) 849 | -10/Materials | Entered Mines 1055 | -10/Mines | Discovered new exit (range 10) 1203 | -10/Mines | A weapon hastily lodged in a ceiling crevice suddenly fell to the ground 1241 | -10/Mines | Learned location of 2 exits from Materials 1251 | -10/Mines | Discovered new exit (range 14) 1976 | -10/Mines | Discovered new exit (range 10) 1998 | -10/Mines | Entered Subcaves 1999 | -10/Subcaves | Approached by a straggling Scientist 2001 | -10/Subcaves | Shifting Twisted Machinery released Hvy. Battle Rifle 2001 | -10/Subcaves | Shifting Twisted Machinery released Flamer 2014 | -10/Subcaves | Discovered new exit (range 13) 2279 | -10/Subcaves | Shifting Twisted Machinery released Mak. Power Source 2315 | -10/Subcaves | Shifting Twisted Machinery released Battle Cannon 2426 | -10/Subcaves | Visited 4L-MR0's lab 2449 | -10/Subcaves | Found Rainbow Chip 2587 | -10/Subcaves | Core integrity fell below 50% 2648 | -10/Subcaves | Build established: Scavenger-Mutant 2735 | -10/Subcaves | Learned 2 Materials zone layouts 3318 | -10/Subcaves | Disturbed a concealed Subdweller 3325 | -10/Subcaves | Core integrity fell below 20% 3409 | -10/Subcaves | A swath of the cavern ceiling suddenly collapsed 3536 | -10/Subcaves | Destroyed by OL-4Y8(R) with Subdweller Machine Gun Last Messages --------------- 03340_ Found Sub. Shrapnel Launcher. 03340_ Found 49 Matter. 03344_ Searching scrap... 03344_ Found Shrapnel Trap. 03344_ Found 39 Matter. 03349_ Acquired Sub. Machine Gun. 03355_ Acquired Sub. Laser. 03358_ Acquired Sub. Shrapnel Launcher. AK-296(c): "I think it's somewhere northeast of here" A swath of the cavern ceiling suddenly collapses. AK-296(c): "I think it's somewhere northeast of here" 03526_ Ion Engine destroyed. 03527_ Lgt. Treads destroyed. AK-296(c): "I think it's somewhere northeast of here" 03531_ Z6-Q23(R) destroyed. 03534_ S-10 Pest destroyed. Map ----- +----------------------------------------------------+ | ?????????????????????????????????????????????????? | | ?????????????????????????????????????????????????? | | ?????????????????????????????????????????????????? | | ?????????????????????????????????????????????????? | | ?????????????????????????????????????????????????? | | ?????????????????????????????????????????????????? | | ?????????????????????????????????????????????????? | | ?????????????????????????????????????????????????? | | ?????????????????????????????????????????????????? | | ?????????????????????????????????????????????????? | | ?????????????????????????????????????????????????? | | ?????????????????????????????????????????????????? | | ?????????????????????????????????????????????????? | | ?????????????????????????????????????????????????? | | ?????????????????????????????? ??????????????????? | | ?????????????????????????????? ???# ?????????????? | | ??????????????????????#??????? #?# ????????????? | | ???????????????????????"?????? ## ????????????? | | ???????????????????????" ?"""" ?????????????? | | ???????????????????????? """" ??????????????? | | ????????????????????????? """"| ???????????????? | | ?????????????????????????? ????????????????# | | ??????????????????????????# #?????????????????# | | ?????????????? "??????????#" #?####?????????????# | | ??????????????#"